Cogmind - Beta 15 *** ADVENTURER MODE // 2025.09.30 @ 20:26:04 Player: varrok Result: Self-destructed Performance ------------- Evolutions (1) 500 Regions Visited (3) 600 Robots Destroyed (27) 135 Value Destroyed (966) 966 Prototype IDs (5) 100 Alien Tech Used (0) 0 Bonus (0) 0 TOTAL SCORE: 2301 Bonus ------- None Cogmind --------- Core Integrity 282/400 Matter 300/300 Energy 265/265 System Corruption 0% Temperature Cool (0) Movement Walking (120) Location -9/Mines Parts ------- > --- POWER (1) -------- Improved Ion Engine > --- PROPULSION (3) --- Aluminum Leg Aluminum Leg Aluminum Leg > --- UTILITY (3) ------ Small Storage Unit Visual Processing Unit Targeting Computer > --- WEAPON (2) ------- Particle Cannon Plasma Cutter > --- INVENTORY (8) ---- Reinforced Ion Engine Aluminum Leg Aluminum Leg Heat Sink Improved Heat Sink Large Matter Pod (150) Particle Cannon Grenade Launcher Peak State ------------ > --- POWER ------------ Reinforced Ion Engine > --- PROPULSION ------- Aluminum Leg Aluminum Leg Aluminum Leg > --- UTILITY ---------- Small Storage Unit Visual Processing Unit Targeting Computer > --- WEAPON ----------- Particle Cannon Plasma Cutter > --- INVENTORY -------- Reinforced Ion Engine Aluminum Leg Heat Sink Improved Heat Sink Large Matter Pod EM Pulse Gun Grenade Launcher [Rating: 14] Favorites ----------- Power Reinforced Ion Engine Engine Reinforced Ion Engine Propulsion Aluminum Leg Leg Aluminum Leg Utility Small Storage Unit Device Improved Heat Sink Storage Small Storage Unit Processor Visual Processing Unit Weapon Particle Cannon Energy Gun Small Laser Energy Cannon Particle Cannon Ballistic Gun Assault Rifle Launcher Grenade Launcher Special Weapon Plasma Cutter Build | -11 -10 -9 -9 ------- Run | Yrd Mat Mat Min Slots Evolved 2 | . . 2 . Power . | . . . . Propulsion 1 | . . 1 . Utility 1 | . . 1 . Weapon . | . . . . Parts Attached 24 | 7 4 12 1 Power 3 | 1 1 1 . Engine 3 | 1 1 1 . Core . | . . . . Reactor . | . . . . Propulsion 10 | 2 . 7 1 Treads . | . . . . Leg 10 | 2 . 7 1 Wheel . | . . . . Hover . | . . . . Flight . | . . . . Utility 4 | 1 2 1 . Device 1 | . 1 . . Storage 1 | 1 . . . Processor 2 | . 1 1 . Hackware . | . . . . Protection . | . . . . Artifact . | . . . . Weapon 7 | 3 1 3 . Energy Gun 2 | 1 . 1 . Energy Cannon 1 | . . 1 . Ballistic Gun 2 | 2 . . . Ballistic Cannon . | . . . . Launcher 1 | . 1 . . Special Weapon 1 | . . 1 . Impact Weapon . | . . . . Slashing Weapon . | . . . . Piercing Weapon . | . . . . Special Melee Weapon . | . . . . Unidentified Prototypes . | . . . . Parts Lost . | . . . . Power . | . . . . Propulsion . | . . . . Utility . | . . . . Weapon . | . . . . Highest Loss Streak . | . . . . To Critical Strikes . | . . . . Average Backups 7 | 3 7 7 8 Power 1 | 1 1 . 1 Propulsion 1 | . 2 1 2 Utility 2 | . 2 2 3 Weapon 1 | . 1 1 2 Tool/Special . | . . . . Unused Backups 14 | . 8 2 4 Power 3 | . 2 . 1 Propulsion 3 | . 3 . . Utility 5 | . 3 . 2 Weapon 3 | . . 2 1 Tool/Special . | . . . . Average Slot Usage (%) 97 | . 96 99 100 Engine 12 | . 14 11 11 Leg 30 | . 28 32 33 Storage 12 | . 14 11 11 Processor 16 | . 8 21 22 Energy Gun 8 | . 12 7 . Energy Cannon 6 | . . 10 11 Ballistic Gun 6 | . 14 2 . Special Weapon 1 | . . 1 11 Peak Build Rating 14 | 6 11 14 14 Average Rating 11 | 4 9 12 14 On Entrance 7 | . 6 10 14 Naked Turns . | . . . . Heaviest Build 21 | 13 20 21 17 Greatest Support 30 | 20 20 30 30 Greatest Overweight (x) 1 | . . 1 . Average Overweight (x) . | . . . . Largest Inventory Capacity 8 | 8 8 8 8 Average Capacity 7 | 6 8 8 8 Most Carried 8 | 5 8 8 8 Average Carried 7 | 3 7 7 7 Final Capacity 8 | 8 8 8 8 Final Carried 8 | 4 8 8 8 Class Distribution -------------------- 85% | Mutant 14% | Scavenger-Mutant Dominant Class ---------------- Mutant | -10/Materials Mutant | -9/Materials Scavenger-Mutant | -9/Mines Resources | -11 -10 -9 -9 ----------- Run | Yrd Mat Mat Min Matter Collected 710 | 199 311 190 10 Remotely . | . . . . Salvage Created 1196 | . 157 941 98 Parts 64 | . 12 50 2 Haulers Intercepted . | . . . . Recyclers Shooed 1 | . . 1 . Parts Field Recycled . | . . . . Retrieved Matter . | . . . . Parts Self-Destructed . | . . . . Prevented . | . . . . Kills | -11 -10 -9 -9 ------- Run | Yrd Mat Mat Min Combat Hostiles Destroyed 25 | . 5 18 2 Guns 15 | . 4 11 . Cannons 8 | . . 6 2 AOE 2 | . 1 1 . Classes Destroyed 4 | . 1 3 . Watcher 2 | . . 2 . Grunt 19 | . 5 12 2 Brawler 2 | . . 2 . Sentry 4 | . . 4 . Best Kill Streak 3 | . 2 3 2 Combat Bots Only 3 | . 2 3 2 Max Kills in Single Turn 1 | . 1 1 1 Gunslinging . | . . . . Exploded 1 | . 1 1 . Melee . | . . . . Uniques/NPCs Destroyed . | . . . . Combat | -11 -10 -9 -9 -------- Run | Yrd Mat Mat Min Hostile Shots Fired 99 | . 13 81 5 Missed 31 | . 4 26 1 Hits 68 | . 9 55 4 Projectile 68 | . 9 55 4 Damage Taken 640 | . 74 524 42 Core 126 | . 8 108 10 Absorbed by Shields . | . . . . Ignored by Resistances 195 | . 21 162 12 Core Remaining (%) 98 | 100 96 . . Volleys Fired 70 | . 10 55 5 Largest 2 | . 2 2 2 Hottest 108 | . 60 108 88 Shots Fired 118 | . 18 94 6 Gun 69 | . 16 53 . Cannon 46 | . . 41 5 Launcher 2 | . 2 . . Special 1 | . . . 1 Kinetic 30 | . 10 20 . Thermal 53 | . 6 41 6 Explosive 2 | . 2 . . Electromagnetic 33 | . . 33 . Robot Hit Streak 38 | . 7 37 38 Robot Miss Streak 2 | . 1 2 . Penetration Max . | . . . . Secondary Targets . | . . . . Shots Hit Robots 98 | . 14 79 5 Core Hits 43 | . 10 30 3 Critical Kills . | . . . . Critical Parts Destroyed . | . . . . Critical Strikes 2 | . . 2 . Corrupt 2 | . . 2 . Melee Attacks . | . . . . Impact . | . . . . Slashing . | . . . . Piercing . | . . . . Sneak Attacks . | . . . . Combat Hostiles . | . . . . Follow-up Attacks . | . . . . Damage Inflicted 1708 | . 277 1328 103 Guns 793 | . 141 652 . Cannons 736 | . . 633 103 Explosions 179 | . 136 43 . Melee . | . . . . Ramming . | . . . . Kinetic 308 | . 86 222 . Thermal 834 | . 55 676 103 Explosive 136 | . 136 . . Electromagnetic 430 | . . 430 . Impact . | . . . . Slashing . | . . . . Piercing . | . . . . Highest Corruption . | . . . . Average Corruption . | . . . . Corruption Purged . | . . . . Corruption Blocked . | . . . . Overload Shots . | . . . . Overflow Damage . | . . . . Projectiles . | . . . . Explosions . | . . . . Melee . | . . . . Knockbacks . | . . . . Impact . | . . . . Kinetic . | . . . . Secondary . | . . . . Self-Inflicted Damage . | . . . . Shots . | . . . . Rammed . | . . . . Targets Rammed . | . . . . Kicked . | . . . . Crushed . | . . . . Highest Temperature 381 | . 48 381 132 Average Temperature 98 | . 19 111 63 Received Heat Transfer 390 | . 54 300 36 Effects 2 | . . 2 . Shutdowns 1 | . . 1 . Energy Bleed 1 | . . 1 . Siege Activations . | . . . . Martial Activations . | . . . . Shielding Activations . | . . . . Robots Disrupted 1 | . . 1 . Combat Hostiles 1 | . . 1 . Robots Corrupted . | . . . . Combat Hostiles . | . . . . Parts Fried . | . . . . Impact Corruptions . | . . . . Robots Melted . | . . . . Combat Hostiles . | . . . . Parts Melted . | . . . . Heat Transferred 1457 | . 125 1147 185 Parts Sabotaged . | . . . . Parts Stolen . | . . . . Parts Stripped . | . . . . Power Chain Reactions 1 | . . 1 . Alert | -11 -10 -9 -9 ------- Run | Yrd Mat Mat Min Maximum Alert Level . | . . . . Low Security (%) 100 | 100 100 100 100 Level 1 . | . . . . Level 2 . | . . . . Level 3 . | . . . . Level 4 . | . . . . Level 5 . | . . . . High Security . | . . . . Max Security . | . . . . Peak Influence 182 | . 65 182 93 Initial 43 | . . 9 43 Average 43 | . 8 70 61 Influence Increases 694 | . 143 492 59 Destroy 0b10 Robot/C 500 | . 100 360 40 Destroy 0b10 Robot/NC 10 | . . 10 . Destroy Leader 114 | . 20 84 10 Successful Hack 8 | . 8 . . Disable Machine 9 | . . . 9 Destroy Structure 23 | . 15 8 . Lose Combat Pursuer 30 | . . 30 . Influence Decreases 652 | . 118 385 149 Entered New Map 105 | . . 16 89 Time Decay 547 | . 118 369 60 Squads Dispatched 3 | . 2 1 . Investigation 2 | . 2 . . Extermination . | . . . . Reinforcement 1 | . . 1 . Assault . | . . . . Garrison . | . . . . Intercept . | . . . . Searches Triggered . | . . . . Construction Impeded . | . . . . Haulers Reinforced . | . . . . Active Scanning Responses . | . . . . Cargo Convoy Interrupts . | . . . . Stealth | -11 -10 -9 -9 --------- Run | Yrd Mat Mat Min Distress Signals 4 | . 1 3 . Communications Jammed . | . . . . Distress Signals . | . . . . Times Spotted 34 | . 8 25 1 Peak Tracking Total 5 | . 2 5 1 Tactical Retreats 2 | . . 2 . Traps | -11 -10 -9 -9 ------- Run | Yrd Mat Mat Min Traps Triggered 2 | . 2 . . Indirectly . | . . . . Trap Hack Attempts . | . . . . Triggered . | . . . . Disarmed . | . . . . Reprogrammed . | . . . . Reused . | . . . . Traps Extracted . | . . . . Installed . | . . . . Triggered . | . . . . Machines | -11 -10 -9 -9 ---------- Run | Yrd Mat Mat Min Machines Disabled 1 | . . . 1 Max in Single Turn 1 | . . . 1 Machines Repaired . | . . . . Machines Dismantled 1 | . . . 1 Machines Sabotaged . | . . . . Overloaded Fab Kills . | . . . . Hacking | -11 -10 -9 -9 --------- Run | Yrd Mat Mat Min Machines Accessed 6 | . 3 3 . Terminals 4 | . 3 1 . Fabricators . | . . . . Repair Stations . | . . . . Recycling Units . | . . . . Scanalyzers 2 | . . 2 . Garrison Access . | . . . . Total Hacks 23 | . 12 11 . Successful 12 | . 8 4 . Failed 11 | . 4 7 . Catastrophic 1 | . 1 . . Database Lockouts . | . . . . Manual . | . . . . Terminals 16 | . 12 4 . Fabricators . | . . . . Repair Stations . | . . . . Recycling Units . | . . . . Scanalyzers 7 | . . 7 . Garrison Access . | . . . . Terminal Hacks 11 | . 8 3 . Record 6 | . 3 3 . Robot Analysis 1 | . 1 . . Prototype ID Bank 2 | . 2 . . Reinforcement Status 1 | . 1 . . Hauler Manifests 1 | . 1 . . Fabricator Hacks . | . . . . Repair Station Hacks . | . . . . Recycling Unit Hacks . | . . . . Scanalyzer 1 | . . 1 . Insert Component 1 | . . 1 . Garrison Access Hacks . | . . . . Unauthorized Hacks . | . . . . Terminals . | . . . . Fabricators . | . . . . Repair Stations . | . . . . Recycling Units . | . . . . Scanalyzers . | . . . . Garrison Access . | . . . . Data Cores Recovered . | . . . . Used . | . . . . Hacking Detections 4 | . 2 2 . Full Trace Events 2 | . 1 1 . Feedback Events . | . . . . Feedback Blocked . | . . . . Robot Schematics Acquired . | . . . . Robots Built . | . . . . Authchips . | . . . . Time . | . . . . Total Robot Build Rating . | . . . . Part Schematics Acquired . | . . . . Parts Built . | . . . . Authchips . | . . . . Time . | . . . . Total Part Build Rating . | . . . . Parts Repaired . | . . . . Time . | . . . . Parts Recycled . | . . . . Recycled Matter . | . . . . Retrieved Matter . | . . . . Retrieved Components . | . . . . Parts Scanalyzed . | . . . . Part Schematics Acquired . | . . . . Parts Damaged . | . . . . Bothacking | -11 -10 -9 -9 ------------ Run | Yrd Mat Mat Min Used RIF Installer . | . . . . Robots Hacked . | . . . . Non-combat . | . . . . Combat . | . . . . Robot Hacks Applied . | . . . . Relay Couplers Released . | . . . . Fabnet Peak Effective % . | . . . . Robots Rewired . | . . . . Allies Hacked . | . . . . Hacks Repelled . | . . . . Allies | -11 -10 -9 -9 -------- Run | Yrd Mat Mat Min Total Allies . | . . . . Largest Group . | . . . . Highest-Rated Group . | . . . . Highest-Rated Ally . | . . . . Total Orders . | . . . . Ally Attacks . | . . . . Total Damage . | . . . . Kills . | . . . . Allies Corrupted . | . . . . Allies Melted . | . . . . Intel | -11 -10 -9 -9 ------- Run | Yrd Mat Mat Min Active Infowar (turns) 1426 | . 412 878 136 Optics 1426 | . 412 878 136 Robot Analysis Total 1 | . 1 . . Derelict Logs Recovered 1 | . . . 1 Drone Launches . | . . . . Drone Recoveries . | . . . . Exploration | -11 -10 -9 -9 ------------- Run | Yrd Mat Mat Min Turns Passed 1735 | 86 635 878 136 Spaces Moved 992 | 45 408 464 75 Core 9 | 9 . . . Treads . | . . . . Legs 983 | 36 408 464 75 Wheels . | . . . . Hover . | . . . . Flight . | . . . . Fastest Speed 50 | 50 120 120 120 Average Speed 119 | 106 120 120 120 Slowest Speed 190 | 120 120 190 120 Overloaded Moves . | . . . . Propulsion Burnouts . | . . . . Robots Hopped . | . . . . Potential Cave-ins . | . . . . Cave-ins Triggered . | . . . . Exploration Rate (%) 29 | 3 64 24 27 Regions Visited 3 Branch Regions 1 Pre-discovered Areas . | . . . . Known Exits Taken . | . . . . Unknown Exits Taken 3 | 1 1 1 . Scrap Searched . | . . . . Spaces Dug . | . . . . Terrain Destroyed 22 | . 17 5 . Melee . | . . . . Projectile . | . . . . AOE 22 | . 17 5 . Terrain Rammed . | . . . . Walls Destroyed . | . . . . Machines Disabled . | . . . . Actions | -11 -10 -9 -9 --------- Run | Yrd Mat Mat Min Total 1410 | 83 539 693 95 Wait 246 | 22 90 134 . Move 989 | 44 407 463 75 Hop . | . . . . Pick Up 42 | 10 16 14 2 Fast Attach . | . . . . Attach 14 | 6 2 6 . Detach . | . . . . Swap 11 | 1 3 6 1 Drop 26 | . 11 13 2 Fire 70 | . 10 55 5 Melee . | . . . . Ram . | . . . . Kick . | . . . . Crush . | . . . . Escape Stasis . | . . . . Rewire 2 | . . 2 . Trap . | . . . . Miscellaneous 10 | . . . 10 Route ------- -11/Scrapyard -10/Materials (discovered 2 exits: *Mat x2) -9/Materials -9/Mines (discovered 1 exit: Mat) History --------- Turn | Location | Event 7 | -11/Scrapyard | Discovered new exit (range 15) 87 | -11/Scrapyard | Entered Materials 88 | -10/Materials | Met a group of wandering Federalists 300 | -10/Materials | Discovered new exit (range 12) 331 | -10/Materials | Build established: Mutant 612 | -10/Materials | Discovered new exit (range 17) 722 | -10/Materials | Entered another Materials area 722 | -9/Materials | Evolved 2 slots: Propulsion x1, Utility x1 1321 | -9/Materials | Discovered new exit (range 11) 1600 | -9/Materials | Entered Mines 1646 | -9/Mines | Identified exit to Materials 1734 | -9/Mines | Found the Drone Emporium 1736 | -9/Mines | Self-destructed Last Messages --------------- G-47 Trooper destroyed. Dropped Aluminum Leg. Acquired Aluminum Leg. Dropped Aluminum Leg. Acquired 10 matter. Acquired Aluminum Leg. Acquired derelict log, extracted data. Loading 1 Mines exit... K-01 Serf collects debris. T-07 Excavator is excavating. K-01 Serf collects debris. Dismantling SHOP.Sys with Plasma Cutter. Dismantling Sealed Doors with Plasma Cutter. Sealed Doors dismantled. RF-92H(g): "Well that was anticlimactic. Heard you outside and thought you were from the Merchants Guild. I haven't even officially opened my Drone Emporium yet but am totally ready to tell them where they can shove that C&D." RF-92H(g): "I'm a fan of the free market. Free drones for all! No strings attached!" Map ----- +----------------------------------------------------+ | ??????????????????????? ???? | | ??????????????????????? ???? | | ???????????????????????# #???? | | ???????????????????????# #???? | | ???????????????????????# #???? | | ????????????????????#### #???? | | ??????????????###??## #???? | | ?????????????## ### #???? | | ?????????????# ###?? | | ?????????????# ##? | | ??????????????# ## | | ??????????????? ????# # | | ??????????????? ????## | | ???????????????# ????## | | ???????????????# #??### | | ???????????????# #?## ## | | ??????????###### ### ### | | ??????????# ### | | ??????????# #? | | ??????????# #### #? | | ??????????# #??## ##### #? | | ???????#### ########???## ##? | | ?????### #??????# #? | | ?#"??# #??????# #? | | #" #X #???????####? | | #" @ #???????????? | | #"! #???????????? | | #" g# #???????????? | | ?#""## #???????????? | | ?###?### #???????????? | | ???????############???????????? | | ??????????????????????????????? | | ??????????????????????????????? | | ??????????????????????????????? | | | | | | | | | | | | | | | | | | | | | | | | | | | | | | | | | +----------------------------------------------------+ Best States ------------- Heat Dissipation 39 Energy Generation 12 Energy Capacity 265 Matter Stores 300 Matter Capacity 300 Sight Range 18 Terrain Scan Density 10 Resistance: KI 20 Resistance: TH 20 Resistance: EX 20 Resistance: EM 20 Resistance: I 20 Resistance: S 20 Resistance: P 20 Evasion (%) 55 Targeting Accuracy 5 Offensive Hacking 10 Item Schematics ----------------- None Robot Schematics ------------------ None Fabricated ------------ Nothing Repaired ---------- Nothing Alien Tech Used ----------------- None Achievements -------------- Safety First Challenges ------------ None Game ------ Seed DimensionalPhasingGun Manual? 0 Play Time 00:28:10 Cumulative 6.3 hours Start 2025.07.12 @ 11:08:02 End 2025.09.30 @ 20:26:04 Sessions 5 Manual Loads 0 Difficulty Adventurer Special Mode None Game No. 9 Rogue 0 Adventurer 9 Explorer 0 Win Type - Total 0 Types 0/0/0/0/0/0/0/0/0/0 Lore% 3 Gallery% 9 Achievement% 12 Wizard Run 0 Options --------- Layout 2 ASCII 0 Keyboard 0 Movement Numpad Keybinds 0 Fullscreen 1 Font 32/SmallcapsGlow Map View 77x44 Zoom Use 0% Tactical HUD 0 Map Filters NONE Filters NONE Steam 1 RUN: aa440aef-a30d-4ea5-9632-3ab799c60015